[Event "Late-Titled-Tuesday-Blitz-March-12-2024"]
[Site "Chess.com"]
[Date "2024.03.12"]
[Round "1"]
[White "Kosak12"]
[Black "JacksterThePro"]
[Result "0-1"]
[WhiteElo "2789"]
[BlackElo "2469"]
[TimeControl "180+1"]
[EndTime "14:08:40 PDT"]
[Termination "JacksterThePro won on time"]

1. e4 {[%clk 0:02:57.6]} 1... c6 {[%clk 0:02:49.5]} 2. Nf3 {[%clk 0:02:52.9]}
2... d5 {[%clk 0:02:47.1]} 3. d3 {[%clk 0:02:52.9]} 3... g6 {[%clk 0:02:40.1]}
4. Nbd2 {[%clk 0:02:52.5]} 4... Bg7 {[%clk 0:02:40.2]} 5. g3 {[%clk 0:02:51.5]}
5... e5 {[%clk 0:02:35.8]} 6. Bg2 {[%clk 0:02:51.4]} 6... Ne7 {[%clk 0:02:35.6]}
7. O-O {[%clk 0:02:50.3]} 7... O-O {[%clk 0:02:36.2]} 8. Re1 {[%clk 0:02:50.1]}
8... Qc7 {[%clk 0:02:25.3]} 9. c3 {[%clk 0:02:34.7]} 9... h6 {[%clk 0:02:20.2]}
10. Qc2 {[%clk 0:02:34.2]} 10... Be6 {[%clk 0:02:14]} 11. d4 {[%clk 0:02:26.5]}
11... Nd7 {[%clk 0:01:49.5]} 12. dxe5 {[%clk 0:02:17.3]} 12... Nxe5 {[%clk
0:01:47.5]} 13. Nxe5 {[%clk 0:02:17.4]} 13... Bxe5 {[%clk 0:01:43.7]} 14. Nf3
{[%clk 0:02:07.9]} 14... Bg7 {[%clk 0:01:43.8]} 15. Nd4 {[%clk 0:02:02.6]} 15...
Bd7 {[%clk 0:01:38.4]} 16. Bf4 {[%clk 0:02:00.2]} 16... Qb6 {[%clk 0:01:36.2]}
17. Rad1 {[%clk 0:01:54.8]} 17... Rfe8 {[%clk 0:01:33.5]} 18. Nb3 {[%clk
0:01:34.6]} 18... Be6 {[%clk 0:01:18.6]} 19. Be3 {[%clk 0:01:31.3]} 19... Qc7
{[%clk 0:01:16.2]} 20. Bd4 {[%clk 0:01:26]} 20... b6 {[%clk 0:01:04]} 21. Bxg7
{[%clk 0:01:25.2]} 21... Kxg7 {[%clk 0:01:04.2]} 22. Nd4 {[%clk 0:01:24.9]}
22... Bg4 {[%clk 0:01:03.4]} 23. Rd2 {[%clk 0:01:23.5]} 23... dxe4 {[%clk
0:00:57.2]} 24. Bxe4 {[%clk 0:01:22.9]} 24... Rad8 {[%clk 0:00:54.5]} 25. f3
{[%clk 0:01:09.2]} 25... Bc8 {[%clk 0:00:52.1]} 26. Rde2 {[%clk 0:01:08.9]}
26... Ba6 {[%clk 0:00:42.8]} 27. Re3 {[%clk 0:00:55.6]} 27... Nd5 {[%clk
0:00:38.7]} 28. Bxd5 {[%clk 0:00:53.3]} 28... Rxe3 {[%clk 0:00:39.6]} 29. Rxe3
{[%clk 0:00:53.2]} 29... Rxd5 {[%clk 0:00:40.3]} 30. Qe4 {[%clk 0:00:46.1]}
30... Qd7 {[%clk 0:00:37.1]} 31. Kg2 {[%clk 0:00:16.9]} 31... c5 {[%clk
0:00:32.1]} 32. Ne2 {[%clk 0:00:17]} 32... Rd2 {[%clk 0:00:28.3]} 33. Kf2 {[%clk
0:00:12.4]} 33... Rxb2 {[%clk 0:00:22.2]} 34. c4 {[%clk 0:00:11.2]} 34... Qd4
{[%clk 0:00:17]} 35. Qe7 {[%clk 0:00:02.9]} 35... Bxc4 {[%clk 0:00:11.6]} 36.
Kf1 {[%clk 0:00:01.7]} 36... Bxe2+ {[%clk 0:00:06.7]} 37. Rxe2 {[%clk
0:00:01.8]} 37... Rxe2 {[%clk 0:00:03.4]} 38. Qxe2 {[%clk 0:00:02.7]} 38... c4
{[%clk 0:00:03.4]} 39. Kg2 {[%clk 0:00:02.3]} 39... c3 {[%clk 0:00:02.9]} 40.
Kf1 {[%clk 0:00:03]} 40... Qd2 {[%clk 0:00:01.4]} 41. Qe5+ {[%clk 0:00:02.2]}
41... Kh7 {[%clk 0:00:02]} 42. Qe7 {[%clk 0:00:02.3]} 42... Qd3+ {[%clk
0:00:02.1]} 43. Kg2 {[%clk 0:00:02.3]} 43... Qc4 {[%clk 0:00:02.6]} 44. Qe1
{[%clk 0:00:01.5]} 44... c2 {[%clk 0:00:02.9]} 45. Qc1 {[%clk 0:00:01.9]} 45...
Qd3 {[%clk 0:00:03.2]} 46. Kh3 {[%clk 0:00:02]} 46... Qd1 {[%clk 0:00:02.5]} 47.
Qf4 {[%clk 0:00:02.3]} 47... Qd7+ {[%clk 0:00:01.1]} 48. g4 {[%clk 0:00:02.8]}
48... Kg7 {[%clk 0:00:01.7]} 49. Qe5+ {[%clk 0:00:03]} 49... Kg8 {[%clk
0:00:02.1]} 50. Qb8+ {[%clk 0:00:03.3]} 50... Kh7 {[%clk 0:00:02.3]} 51. Qf4
{[%clk 0:00:04.1]} 51... g5 {[%clk 0:00:01.1]} 52. Qe4+ {[%clk 0:00:04]} 52...
Kg7 {[%clk 0:00:01.7]} 53. Qxc2 {[%clk 0:00:04.6]} 53... Qe6 {[%clk 0:00:02.1]}
54. Qc3+ {[%clk 0:00:04.8]} 54... Qf6 {[%clk 0:00:02.3]} 55. Qd3 {[%clk
0:00:05.3]} 55... Qf4 {[%clk 0:00:02.2]} 56. a4 {[%clk 0:00:05.8]} 56... Qxa4
{[%clk 0:00:02]} 57. Qc3+ {[%clk 0:00:06.2]} 57... Kg8 {[%clk 0:00:02]} 58. Qc8+
{[%clk 0:00:06.3]} 58... Kg7 {[%clk 0:00:01.8]} 59. Qc3+ {[%clk 0:00:06.6]}
59... Kh7 {[%clk 0:00:01.3]} 60. Qd3+ {[%clk 0:00:06.8]} 60... Kg8 {[%clk
0:00:01.9]} 61. Qd8+ {[%clk 0:00:07]} 61... Kg7 {[%clk 0:00:02.4]} 62. Qd3
{[%clk 0:00:06.4]} 62... Qf4 {[%clk 0:00:02.9]} 63. Qc3+ {[%clk 0:00:06.8]}
63... Qf6 {[%clk 0:00:03.3]} 64. Qb3 {[%clk 0:00:04]} 64... a5 {[%clk
0:00:03.6]} 65. Kg2 {[%clk 0:00:02]} 65... Qd4 {[%clk 0:00:02.8]} 66. h4 {[%clk
0:00:01.8]} 66... a4 {[%clk 0:00:02.7]} 67. Qc2 {[%clk 0:00:01.5]} 67... a3
{[%clk 0:00:01.8]} 68. Qb3 {[%clk 0:00:01.4]} 68... Qb2+ {[%clk 0:00:01.7]} 0-1

[Event "Late-Titled-Tuesday-Blitz-March-12-2024"]
[Site "Chess.com"]
[Date "2024.03.12"]
[Round "1"]
[White "Smiechu"]
[Black "carokannlover213"]
[Result "0-1"]
[WhiteElo "2463"]
[BlackElo "2818"]
[TimeControl "180+1"]
[EndTime "14:08:43 PDT"]
[Termination "carokannlover213 won by resignation"]

1. e4 {[%clk 0:03:00.9]} 1... e6 {[%clk 0:02:58.7]} 2. d4 {[%clk 0:03:00.5]}
2... d5 {[%clk 0:02:58]} 3. Bd3 {[%clk 0:03:01.1]} 3... c5 {[%clk 0:02:58.4]} 4.
exd5 {[%clk 0:02:57.2]} 4... exd5 {[%clk 0:02:59.3]} 5. Nf3 {[%clk 0:02:57.3]}
5... c4 {[%clk 0:02:58.3]} 6. Be2 {[%clk 0:02:57]} 6... Nf6 {[%clk 0:02:58.7]}
7. O-O {[%clk 0:02:56.9]} 7... Be7 {[%clk 0:02:57.8]} 8. Re1 {[%clk 0:02:55.9]}
8... O-O {[%clk 0:02:58.2]} 9. Ne5 {[%clk 0:02:41.7]} 9... Nc6 {[%clk
0:02:55.3]} 10. Bf3 {[%clk 0:02:39.4]} 10... Be6 {[%clk 0:02:55.3]} 11. c3
{[%clk 0:02:25.5]} 11... Re8 {[%clk 0:02:52]} 12. Bf4 {[%clk 0:02:24]} 12... Bd6
{[%clk 0:02:49.6]} 13. Bg3 {[%clk 0:02:23.2]} 13... Qc7 {[%clk 0:02:48.2]} 14.
Na3 {[%clk 0:01:51.5]} 14... a6 {[%clk 0:02:47.3]} 15. Nc2 {[%clk 0:01:51.4]}
15... Ne7 {[%clk 0:02:41.8]} 16. Ne3 {[%clk 0:01:40.2]} 16... Nf5 {[%clk
0:02:40.5]} 17. Nxf5 {[%clk 0:01:40.1]} 17... Bxf5 {[%clk 0:02:41.4]} 18. Qd2
{[%clk 0:01:30.4]} 18... Ne4 {[%clk 0:02:40.9]} 19. Qf4 {[%clk 0:01:19.6]} 19...
Bg6 {[%clk 0:02:20.7]} 20. Qh4 {[%clk 0:00:57]} 20... Nxg3 {[%clk 0:02:15.3]}
21. hxg3 {[%clk 0:00:48.8]} 21... Bxe5 {[%clk 0:02:10.9]} 22. dxe5 {[%clk
0:00:48]} 22... Rxe5 {[%clk 0:02:11.8]} 23. Rxe5 {[%clk 0:00:44.6]} 23... Qxe5
{[%clk 0:02:12.7]} 24. Rd1 {[%clk 0:00:43.8]} 24... Bd3 {[%clk 0:02:08.6]} 25.
Qg4 {[%clk 0:00:22.7]} 25... Rd8 {[%clk 0:02:05.6]} 26. Qh4 {[%clk 0:00:22.1]}
26... Qf6 {[%clk 0:01:13.8]} 27. Qxf6 {[%clk 0:00:17.1]} 27... gxf6 {[%clk
0:01:14.7]} 28. Re1 {[%clk 0:00:17.7]} 28... Kf8 {[%clk 0:01:14.7]} 29. Re3
{[%clk 0:00:17.5]} 29... b5 {[%clk 0:01:09.1]} 30. Be2 {[%clk 0:00:17.1]} 30...
Bb1 {[%clk 0:01:09.1]} 31. a3 {[%clk 0:00:17]} 31... d4 {[%clk 0:01:08.5]} 32.
cxd4 {[%clk 0:00:17.4]} 32... Rxd4 {[%clk 0:01:08.9]} 33. Bf3 {[%clk 0:00:16]}
33... Rd2 {[%clk 0:01:07]} 34. b3 {[%clk 0:00:15.9]} 34... Bd3 {[%clk
0:01:04.6]} 35. bxc4 {[%clk 0:00:15.7]} 35... bxc4 {[%clk 0:01:05.5]} 36. Be4
{[%clk 0:00:12.2]} 36... Bxe4 {[%clk 0:00:49.8]} 37. Rxe4 {[%clk 0:00:12]} 37...
c3 {[%clk 0:00:50.7]} 38. Rc4 {[%clk 0:00:09.9]} 38... c2 {[%clk 0:00:51.4]} 39.
Kh2 {[%clk 0:00:06.6]} 39... Rxf2 {[%clk 0:00:50.2]} 40. g4 {[%clk 0:00:07]}
40... Rd2 {[%clk 0:00:49.2]} 41. Kg3 {[%clk 0:00:07.3]} 41... Kg7 {[%clk
0:00:44.3]} 42. Kf3 {[%clk 0:00:07.1]} 42... Kg6 {[%clk 0:00:42.2]} 43. g3
{[%clk 0:00:07.3]} 43... a5 {[%clk 0:00:20.5]} 44. Rc5 {[%clk 0:00:06.2]} 44...
a4 {[%clk 0:00:20.1]} 45. Ke3 {[%clk 0:00:05.4]} 45... Rg2 {[%clk 0:00:19.8]}
46. Kf3 {[%clk 0:00:05.8]} 46... Rh2 {[%clk 0:00:20.4]} 47. Ke3 {[%clk
0:00:05.9]} 47... h6 {[%clk 0:00:19.1]} 48. Kf3 {[%clk 0:00:06.1]} 48... f5
{[%clk 0:00:12.8]} 49. gxf5+ {[%clk 0:00:05.7]} 49... Kg5 {[%clk 0:00:13.1]} 50.
Ke3 {[%clk 0:00:02.6]} 50... Kg4 {[%clk 0:00:12.6]} 51. Rc3 {[%clk 0:00:01.7]}
51... Rg2 {[%clk 0:00:10.8]} 52. Ke4 {[%clk 0:00:01.2]} 52... h5 {[%clk
0:00:08.4]} 53. Ke5 {[%clk 0:00:01.5]} 53... Kg5 {[%clk 0:00:08]} 54. f6 {[%clk
0:00:01.3]} 54... Re2+ {[%clk 0:00:07.7]} 55. Kd4 {[%clk 0:00:01.6]} 55... Kxf6
{[%clk 0:00:08.4]} 56. Kd3 {[%clk 0:00:01.9]} 56... Rg2 {[%clk 0:00:08.7]} 57.
Kc4 {[%clk 0:00:02.2]} 57... Kg5 {[%clk 0:00:07.3]} 58. Kb4 {[%clk 0:00:02.5]}
58... Kg4 {[%clk 0:00:07.8]} 59. Kxa4 {[%clk 0:00:02.7]} 59... f5 {[%clk
0:00:08.3]} 60. Kb5 {[%clk 0:00:02.8]} 60... Rxg3 {[%clk 0:00:08.5]} 61. Rxc2
{[%clk 0:00:02.6]} 61... Rxa3 {[%clk 0:00:07.9]} 62. Kb4 {[%clk 0:00:02.9]}
62... Rg3 {[%clk 0:00:07.6]} 63. Kc4 {[%clk 0:00:03.3]} 63... f4 {[%clk
0:00:08.2]} 64. Kd4 {[%clk 0:00:03.7]} 64... h4 {[%clk 0:00:08.2]} 65. Ke4
{[%clk 0:00:03.8]} 65... Re3+ {[%clk 0:00:08.2]} 66. Kd4 {[%clk 0:00:03.9]}
66... h3 {[%clk 0:00:09.1]} 67. Rc8 {[%clk 0:00:04.1]} 67... h2 {[%clk
0:00:08.5]} 68. Rg8+ {[%clk 0:00:03.6]} 68... Kh3 {[%clk 0:00:08.8]} 69. Rh8+
{[%clk 0:00:04]} 69... Kg2 {[%clk 0:00:09.4]} 70. Rg8+ {[%clk 0:00:03.9]} 70...
Rg3 {[%clk 0:00:09.9]} 0-1

[Event "Late-Titled-Tuesday-Blitz-March-12-2024"]
[Site "Chess.com"]
[Date "2024.03.12"]
[Round "1"]
[White "viktorgen2021"]
[Black "Moultino06"]
[Result "1-0"]
[WhiteElo "2486"]
[BlackElo "2816"]
[TimeControl "180+1"]
[EndTime "14:08:48 PDT"]
[Termination "viktorgen2021 won on time"]

1. d4 {[%clk 0:02:59]} 1... b6 {[%clk 0:02:55.7]} 2. Nf3 {[%clk 0:02:57.4]} 2...
Bb7 {[%clk 0:02:55.5]} 3. Nbd2 {[%clk 0:02:57.4]} 3... g6 {[%clk 0:02:53.7]} 4.
g3 {[%clk 0:02:57.3]} 4... Bg7 {[%clk 0:02:52.4]} 5. c3 {[%clk 0:02:57.3]} 5...
Nf6 {[%clk 0:02:52.5]} 6. Bg2 {[%clk 0:02:57.2]} 6... O-O {[%clk 0:02:52.5]} 7.
O-O {[%clk 0:02:57.8]} 7... c5 {[%clk 0:02:51.9]} 8. Ne5 {[%clk 0:02:45.3]} 8...
Bxg2 {[%clk 0:02:50.9]} 9. Kxg2 {[%clk 0:02:44.2]} 9... Nc6 {[%clk 0:02:41.5]}
10. Ndf3 {[%clk 0:02:40.9]} 10... cxd4 {[%clk 0:02:38.7]} 11. Nxc6 {[%clk
0:02:35.7]} 11... dxc6 {[%clk 0:02:39.6]} 12. Qxd4 {[%clk 0:02:36]} 12... Qc8
{[%clk 0:02:34.5]} 13. Qh4 {[%clk 0:02:20.1]} 13... Qe6 {[%clk 0:02:24.5]} 14.
Bh6 {[%clk 0:02:08]} 14... Rfd8 {[%clk 0:02:18.3]} 15. Bxg7 {[%clk 0:02:05.8]}
15... Kxg7 {[%clk 0:02:17.6]} 16. e3 {[%clk 0:02:04.4]} 16... c5 {[%clk
0:02:10.2]} 17. Kg1 {[%clk 0:01:58.2]} 17... h6 {[%clk 0:01:57.3]} 18. b3 {[%clk
0:01:51.7]} 18... Ne4 {[%clk 0:01:49.1]} 19. c4 {[%clk 0:01:44.3]} 19... g5
{[%clk 0:01:44.6]} 20. Qh5 {[%clk 0:01:44.4]} 20... Qf5 {[%clk 0:01:37.5]} 21.
Ne1 {[%clk 0:01:37.8]} 21... Nd2 {[%clk 0:01:34.5]} 22. Ng2 {[%clk 0:01:29.3]}
22... Nxf1 {[%clk 0:01:28.4]} 23. Rxf1 {[%clk 0:01:30.2]} 23... Rd2 {[%clk
0:01:24.9]} 24. h4 {[%clk 0:01:25.2]} 24... Rad8 {[%clk 0:01:18.7]} 25. hxg5
{[%clk 0:01:22]} 25... hxg5 {[%clk 0:01:19.6]} 26. e4 {[%clk 0:01:18.2]} 26...
Qg6 {[%clk 0:01:10.3]} 27. Qf3 {[%clk 0:01:02.7]} 27... Rxa2 {[%clk 0:00:57.1]}
28. Ne3 {[%clk 0:01:01.9]} 28... e6 {[%clk 0:00:53.2]} 29. Kg2 {[%clk
0:00:52.7]} 29... Rdd2 {[%clk 0:00:50.4]} 30. Ng4 {[%clk 0:00:52.4]} 30... Rac2
{[%clk 0:00:40.8]} 31. Rh1 {[%clk 0:00:40]} 31... f5 {[%clk 0:00:40.2]} 32. Rh6
{[%clk 0:00:30.6]} 32... Qxh6 {[%clk 0:00:37.5]} 33. exf5 {[%clk 0:00:27.2]}
33... Qf6 {[%clk 0:00:25.5]} 34. Qb7+ {[%clk 0:00:24.7]} 34... Qf7 {[%clk
0:00:24.8]} 35. f6+ {[%clk 0:00:23.1]} 35... Kf8 {[%clk 0:00:21.2]} 36. Qb8+
{[%clk 0:00:11.6]} 36... Qe8 {[%clk 0:00:21.3]} 37. Qc7 {[%clk 0:00:11.3]} 37...
Qd7 {[%clk 0:00:17.8]} 38. Qb8+ {[%clk 0:00:09.6]} 38... Qd8 {[%clk 0:00:15.7]}
39. Qe5 {[%clk 0:00:05.3]} 39... Qa8+ {[%clk 0:00:15.5]} 40. Kh3 {[%clk
0:00:05.1]} 40... Qh1+ {[%clk 0:00:09.3]} 41. Nh2 {[%clk 0:00:05.4]} 41... Qb7
{[%clk 0:00:02.7]} 42. Kg4 {[%clk 0:00:03.5]} 42... Qh7 {[%clk 0:00:02.6]} 43.
Qb8+ {[%clk 0:00:03]} 43... Kf7 {[%clk 0:00:02.4]} 44. Qc7+ {[%clk 0:00:03.3]}
44... Kg6 {[%clk 0:00:02.8]} 45. Qxh7+ {[%clk 0:00:02.3]} 45... Kxh7 {[%clk
0:00:03]} 46. Nf3 {[%clk 0:00:02.9]} 46... Rxf2 {[%clk 0:00:02.9]} 47. f7 {[%clk
0:00:02.2]} 47... Kg6 {[%clk 0:00:03.8]} 48. f8=Q {[%clk 0:00:02.1]} 48... Rxf3
{[%clk 0:00:04.1]} 49. Qxf3 {[%clk 0:00:02.4]} 49... Kg7 {[%clk 0:00:05]} 50.
Qe4 {[%clk 0:00:02.8]} 50... Rf2 {[%clk 0:00:04.7]} 51. Qe5+ {[%clk 0:00:03.3]}
51... Kg6 {[%clk 0:00:04.5]} 52. Qxg5+ {[%clk 0:00:04.2]} 52... Kf7 {[%clk
0:00:04.5]} 53. Qh5+ {[%clk 0:00:04.2]} 53... Ke7 {[%clk 0:00:05]} 54. Qh7+
{[%clk 0:00:04.6]} 54... Kd6 {[%clk 0:00:05.4]} 55. Qe4 {[%clk 0:00:05.2]} 55...
Rf5 {[%clk 0:00:05]} 56. Kh4 {[%clk 0:00:04.9]} 56... a5 {[%clk 0:00:03.2]} 57.
g4 {[%clk 0:00:05.1]} 57... Rf7 {[%clk 0:00:01.9]} 58. g5 {[%clk 0:00:05.6]}
58... Ke7 {[%clk 0:00:02.2]} 59. g6 {[%clk 0:00:06.1]} 59... Rf2 {[%clk
0:00:02.3]} 60. Kg5 {[%clk 0:00:06.3]} 60... Kf8 {[%clk 0:00:02.1]} 61. Qa8+
{[%clk 0:00:05.4]} 61... Kg7 {[%clk 0:00:02.1]} 62. Qb7+ {[%clk 0:00:06.1]}
62... Kf8 {[%clk 0:00:02.2]} 63. Kh6 {[%clk 0:00:05.1]} 63... Rh2+ {[%clk
0:00:02.1]} 64. Kg5 {[%clk 0:00:05.7]} 64... Rf2 {[%clk 0:00:02.7]} 65. Qb8+
{[%clk 0:00:03.6]} 65... Kg7 {[%clk 0:00:01.9]} 66. Qc7+ {[%clk 0:00:04]} 66...
Kf8 {[%clk 0:00:02.3]} 67. Qd6+ {[%clk 0:00:03.3]} 67... Kg7 {[%clk 0:00:02]}
68. Qe7+ {[%clk 0:00:03.7]} 68... Kg8 {[%clk 0:00:02.3]} 69. Qh7+ {[%clk
0:00:04]} 69... Kf8 {[%clk 0:00:02.8]} 70. g7+ {[%clk 0:00:04.5]} 1-0

[Event "Late-Titled-Tuesday-Blitz-March-12-2024"]
[Site "Chess.com"]
[Date "2024.03.12"]
[Round "1"]
[White "NikolaGry"]
[Black "Gryffindorac8"]
[Result "1-0"]
[WhiteElo "2703"]
[BlackElo "2373"]
[TimeControl "180+1"]
[EndTime "14:08:52 PDT"]
[Termination "NikolaGry won on time"]

1. d4 {[%clk 0:03:00.9]} 1... Nf6 {[%clk 0:02:59.5]} 2. Bg5 {[%clk 0:03:00.4]}
2... d5 {[%clk 0:02:57]} 3. Nd2 {[%clk 0:02:59.5]} 3... e6 {[%clk 0:02:52.2]} 4.
e3 {[%clk 0:02:59.4]} 4... c5 {[%clk 0:02:51.3]} 5. c3 {[%clk 0:02:59]} 5... Nc6
{[%clk 0:02:51.6]} 6. f4 {[%clk 0:02:58.7]} 6... Be7 {[%clk 0:02:51]} 7. Bd3
{[%clk 0:02:57.8]} 7... O-O {[%clk 0:02:49.5]} 8. Ngf3 {[%clk 0:02:55.7]} 8...
b6 {[%clk 0:02:44.6]} 9. O-O {[%clk 0:02:38.6]} 9... Bb7 {[%clk 0:02:43]} 10.
Ne5 {[%clk 0:02:35.8]} 10... h6 {[%clk 0:02:02.8]} 11. Bh4 {[%clk 0:02:29.1]}
11... Rc8 {[%clk 0:01:49.8]} 12. Rf3 {[%clk 0:02:25.2]} 12... Nxe5 {[%clk
0:01:34]} 13. fxe5 {[%clk 0:02:23.7]} 13... Ne4 {[%clk 0:01:33.9]} 14. Bxe7
{[%clk 0:02:19.2]} 14... Qxe7 {[%clk 0:01:34.8]} 15. Rf4 {[%clk 0:01:46.5]}
15... f5 {[%clk 0:00:59.4]} 16. exf6 {[%clk 0:01:45.1]} 16... Nxf6 {[%clk
0:00:47.1]} 17. Qe2 {[%clk 0:01:32.3]} 17... e5 {[%clk 0:00:39.9]} 18. dxe5
{[%clk 0:01:31.9]} 18... Qxe5 {[%clk 0:00:40.8]} 19. Rf5 {[%clk 0:01:31.8]}
19... Qe7 {[%clk 0:00:37]} 20. Re1 {[%clk 0:01:15.4]} 20... Rce8 {[%clk
0:00:35.3]} 21. h3 {[%clk 0:01:14.1]} 21... Ne4 {[%clk 0:00:30.5]} 22. Rxf8+
{[%clk 0:01:08.5]} 22... Rxf8 {[%clk 0:00:31.4]} 23. Nxe4 {[%clk 0:01:07.2]}
23... dxe4 {[%clk 0:00:32.3]} 24. Bc4+ {[%clk 0:01:07.1]} 24... Kh8 {[%clk
0:00:31.5]} 25. Rf1 {[%clk 0:01:07.2]} 25... Bc6 {[%clk 0:00:20.1]} 26. Rxf8+
{[%clk 0:01:00.6]} 26... Qxf8 {[%clk 0:00:21]} 27. Qg4 {[%clk 0:00:59]} 27...
Qd8 {[%clk 0:00:17.5]} 28. Qe6 {[%clk 0:00:54.8]} 28... Bb7 {[%clk 0:00:14.7]}
29. a4 {[%clk 0:00:33.7]} 29... Qd1+ {[%clk 0:00:14.5]} 30. Kh2 {[%clk
0:00:33.3]} 30... Qd8 {[%clk 0:00:13]} 31. Qe5 {[%clk 0:00:32.8]} 31... Bc6
{[%clk 0:00:12.3]} 32. Bb5 {[%clk 0:00:31.6]} 32... Bxb5 {[%clk 0:00:12.2]} 33.
axb5 {[%clk 0:00:31.9]} 33... Qa8 {[%clk 0:00:12.2]} 34. c4 {[%clk 0:00:30.7]}
34... Qb7 {[%clk 0:00:08.7]} 35. Kg3 {[%clk 0:00:26.9]} 35... a6 {[%clk
0:00:08.7]} 36. bxa6 {[%clk 0:00:24.2]} 36... Qxa6 {[%clk 0:00:09.6]} 37. Qe8+
{[%clk 0:00:24.3]} 37... Kh7 {[%clk 0:00:10.2]} 38. Qxe4+ {[%clk 0:00:24.2]}
38... Kh8 {[%clk 0:00:09.1]} 39. Qd3 {[%clk 0:00:23]} 39... Qa1 {[%clk
0:00:07.3]} 40. Qd8+ {[%clk 0:00:19.2]} 40... Kh7 {[%clk 0:00:07.3]} 41. Qd3+
{[%clk 0:00:18.9]} 41... Kh8 {[%clk 0:00:07.8]} 42. b3 {[%clk 0:00:18.7]} 42...
Qe5+ {[%clk 0:00:07.5]} 43. Kf3 {[%clk 0:00:18.4]} 43... Qf6+ {[%clk 0:00:07.9]}
44. Ke2 {[%clk 0:00:18.6]} 44... Qb2+ {[%clk 0:00:07.8]} 45. Kf3 {[%clk
0:00:18.2]} 45... Qf6+ {[%clk 0:00:07.7]} 46. Kg3 {[%clk 0:00:18.4]} 46... Qe5+
{[%clk 0:00:08.2]} 47. Kf2 {[%clk 0:00:18.7]} 47... Qf6+ {[%clk 0:00:08.3]} 48.
Ke2 {[%clk 0:00:18.4]} 48... Qb2+ {[%clk 0:00:08.3]} 49. Kd1 {[%clk 0:00:18.7]}
49... Qa1+ {[%clk 0:00:08.2]} 50. Kd2 {[%clk 0:00:19.1]} 50... Qb2+ {[%clk
0:00:08.3]} 51. Qc2 {[%clk 0:00:19.7]} 51... Qe5 {[%clk 0:00:08.4]} 52. Kc1
{[%clk 0:00:19.4]} 52... Qa1+ {[%clk 0:00:08.3]} 53. Kd2 {[%clk 0:00:19.4]}
53... Qe5 {[%clk 0:00:08.3]} 54. Ke2 {[%clk 0:00:18.6]} 54... Qg3 {[%clk
0:00:08]} 55. Kd3 {[%clk 0:00:17.7]} 55... Qd6+ {[%clk 0:00:07.1]} 56. Kc3
{[%clk 0:00:17.1]} 56... Qe5+ {[%clk 0:00:07.2]} 57. Kd2 {[%clk 0:00:17.4]}
57... Qg3 {[%clk 0:00:07.1]} 58. Kd3 {[%clk 0:00:16.9]} 58... Qd6+ {[%clk
0:00:06.8]} 59. Ke2 {[%clk 0:00:17]} 59... Qg3 {[%clk 0:00:06.9]} 60. Qe4 {[%clk
0:00:17.3]} 60... Qd6 {[%clk 0:00:04.2]} 61. Qd5 {[%clk 0:00:17]} 61... Qc7
{[%clk 0:00:04.1]} 62. e4 {[%clk 0:00:17]} 62... Qg3 {[%clk 0:00:04.1]} 63. e5
{[%clk 0:00:17.3]} 63... Qxb3 {[%clk 0:00:03.9]} 64. e6 {[%clk 0:00:17.6]} 64...
Qc2+ {[%clk 0:00:04.2]} 65. Kf3 {[%clk 0:00:17.7]} 65... Qc3+ {[%clk 0:00:04.2]}
66. Kf2 {[%clk 0:00:17.8]} 66... Qb2+ {[%clk 0:00:04.2]} 67. Kg3 {[%clk
0:00:18]} 67... Qf6 {[%clk 0:00:04.1]} 68. Qe4 {[%clk 0:00:16.6]} 68... Qe7
{[%clk 0:00:04.1]} 69. Kf4 {[%clk 0:00:16.6]} 69... Qd6+ {[%clk 0:00:04.4]} 70.
Qe5 {[%clk 0:00:16.7]} 70... Qd2+ {[%clk 0:00:04.8]} 71. Kf3 {[%clk 0:00:16.8]}
71... Qd3+ {[%clk 0:00:05]} 72. Kf2 {[%clk 0:00:16.8]} 72... Qd2+ {[%clk
0:00:05.4]} 73. Kg3 {[%clk 0:00:17.1]} 73... Qd8 {[%clk 0:00:03.1]} 74. e7
{[%clk 0:00:16.4]} 74... Qe8 {[%clk 0:00:03.6]} 75. Qe6 {[%clk 0:00:16.5]} 75...
Kh7 {[%clk 0:00:03.2]} 76. Kf3 {[%clk 0:00:16.1]} 76... Kh8 {[%clk 0:00:01.8]}
77. Ke4 {[%clk 0:00:15.8]} 77... Kh7 {[%clk 0:00:02.2]} 78. Kd5 {[%clk
0:00:15.7]} 78... Qa8+ {[%clk 0:00:02.2]} 79. Qc6 {[%clk 0:00:15.7]} 1-0